bitfinex/quotes_BTCUSD_20250108
["timestamp","ask_amount","ask_price","bid_price","bid_amount"]
[1736331665069,0.52208,95771.0,95770.0,0.34099871]
[1736331665282,0.52208,95771.0,95770.0,0.31889556]
[1736331668891,0.52208,95771.0,95770.0,0.26477556]
[1736331669097,0.52208,95771.0,95770.0,0.30585352]
[1736331671685,0.52208,95771.0,95770.0,0.25173352]
[1736331671897,0.52208,95771.0,95770.0,0.30585352]
[1736331690089,0.52208,95771.0,95770.0,0.33846449]
[1736331690482,0.52208,95771.0,95770.0,1.83846449]
[1736331690686,0.52208,95771.0,95770.0,1.94276425]
[1736331693507,0.52208,95771.0,95770.0,2.09276425]
[1736331693909,0.52208,95771.0,95770.0,2.03864425]
[1736331695359,0.52195433,95771.0,95770.0,2.03864425]
[1736331695935,0.52195433,95771.0,95770.0,2.13864425]
[1736331696949,0.52295433,95771.0,95770.0,2.13864425]
[1736331700902,0.48637646,95771.0,95770.0,2.13864425]
[1736331701066,0.45665869,95771.0,95770.0,2.13864425]
[1736331718384,0.41656414,95771.0,95770.0,2.23864425]
[1736331719129,0.41656414,95771.0,95770.0,2.23564425]
[1736331719337,0.36686273,95771.0,95770.0,2.56344425]
[1736331719518,0.36686273,95771.0,95770.0,2.56944425]
[1736331719863,0.33713305,95771.0,95770.0,2.56944425]
[1736331722584,0.00015269,95796.0,95795.0,0.558779]
[1736331722794,0.00015269,95796.0,95795.0,0.79297876]
[1736331723023,0.00036765,95800.0,95799.0,0.1]
[1736331723190,0.02269788,95817.0,95814.0,0.208737]
[1736331723395,0.02269788,95817.0,95816.0,0.31303276]
[1736331723575,0.02274876,95817.0,95816.0,0.38302974]
[1736331723773,0.02274876,95817.0,95816.0,0.39477543]
[1736331725266,0.02274876,95817.0,95816.0,0.39677543]
[1736331726985,0.02274876,95817.0,95816.0,0.11804545]
[1736331726986,0.09814876,95817.0,95816.0,0.11804545]
[1736331727199,0.17024876,95817.0,95816.0,0.11804545]
[1736331727613,0.17155347,95817.0,95816.0,0.01374569]
[1736331727849,0.17155347,95817.0,95816.0,0.01174569]
[1736331728055,0.0754,95800.0,95785.0,0.2088]
[1736331728270,0.023,95797.0,95786.0,0.10429976]
[1736331728474,0.02430485,95799.0,95786.0,0.11478965]
[1736331728475,0.023,95799.0,95786.0,0.11478965]
[1736331728680,0.023,95795.0,95786.0,0.11478965]
[1736331728892,0.00130492,95794.0,95786.0,0.11478965]
[1736331729702,0.023,95793.0,95786.0,0.11478965]
[1736331729900,0.00130492,95792.0,95787.0,0.01147896]
[1736331730204,0.00130492,95792.0,95788.0,0.10429976]
[1736331730626,0.00130492,95792.0,95789.0,0.01048328]
[1736331730976,0.208787,95791.0,95790.0,0.10429976]
[1736331731186,0.023,95793.0,95790.0,0.10429976]
[1736331731411,0.00130492,95792.0,95790.0,0.11478084]
[1736331731617,0.00130492,95792.0,95791.0,0.01147808]
[1736331731874,0.00130492,95792.0,95791.0,0.11577784]
[1736331732068,0.00130492,95792.0,95791.0,0.12625672]
[1736331732486,0.02430492,95793.0,95791.0,0.12625672]
[1736331732693,0.023,95797.0,95792.0,0.10429976]
[1736331732898,0.023,95797.0,95793.0,0.01262567]
[1736331733113,0.023,95797.0,95793.0,0.1273999]
[1736331737872,0.023,95799.0,95793.0,0.1273999]
[1736331739219,0.001,95797.0,95793.0,0.1273999]
[1736331739347,0.001,95797.0,95794.0,0.03361929]
[1736331739553,0.001,95797.0,95794.0,0.04409156]
[1736331747229,0.001,95797.0,95796.0,0.208776]
[1736331747440,0.001,95797.0,95796.0,0.31307576]
[1736331747650,0.001,95797.0,95796.0,0.32354363]
[1736331747855,0.001,95797.0,95796.0,0.38140069]
[1736331749989,0.001,95797.0,95796.0,0.39198516]
[1736331750203,0.001,95797.0,95796.0,0.39398516]
[1736331751722,0.001,95797.0,95796.0,0.41480978]
[1736331753116,0.001,95797.0,95796.0,0.41280978]
[1736331754173,0.001,95797.0,95796.0,0.41680978]
[1736331764625,0.001,95797.0,95796.0,0.41280978]
[1736331766169,0.001,95797.0,95796.0,0.41580978]
[1736331766581,0.001,95797.0,95796.0,0.41280978]
[1736331766943,0.001,95797.0,95796.0,0.41580978]
[1736331769255,0.00083332,95797.0,95796.0,0.41580978]
[1736331770447,0.00083332,95797.0,95796.0,0.41280978]
[1736331770857,0.00083332,95797.0,95796.0,0.41680978]
[1736331778953,0.00083332,95797.0,95796.0,0.69770978]
[1736331779568,0.00083332,95797.0,95796.0,2.19770978]
[1736331780368,0.00083332,95797.0,95796.0,2.23030925]
[1736331782455,0.00083332,95797.0,95796.0,0.73030925]
[1736331782873,0.00083332,95797.0,95796.0,2.23030925]
[1736331786317,0.00083332,95797.0,95796.0,0.73030925]
[1736331788597,0.00083332,95797.0,95796.0,0.83030925]
[1736331789056,0.00083332,95797.0,95796.0,2.33030925]
[1736331790017,0.00083332,95797.0,95796.0,2.32630925]
[1736331791375,0.00083332,95797.0,95796.0,2.33130925]
[1736331792590,0.00083332,95797.0,95796.0,2.64791687]
[1736331793629,0.00083332,95797.0,95796.0,2.33130925]
[1736331794692,0.00083332,95797.0,95796.0,2.12253325]
[1736331795495,0.00083332,95797.0,95796.0,2.4394301]
[1736331796157,0.00083332,95797.0,95796.0,2.4344301]
[1736331796313,0.00083332,95797.0,95796.0,2.4384301]
[1736331796519,0.00083332,95797.0,95796.0,2.12153325]
[1736331797594,0.00083332,95797.0,95796.0,2.11753325]
[1736331797775,0.00083332,95797.0,95796.0,2.43440716]
[1736331798022,0.00083332,95797.0,95796.0,2.43940716]
[1736331798604,0.00083332,95797.0,95796.0,2.12253325]
[1736331799967,0.00083332,95797.0,95796.0,2.43937518]
[1736331800195,0.00083332,95797.0,95796.0,2.12253325]
[1736331800579,0.00083332,95797.0,95796.0,2.43937518]
[1736331801580,0.00083332,95797.0,95796.0,2.12253325]
[1736331802165,0.00083332,95797.0,95796.0,2.11753325]
[1736331802689,0.00083332,95797.0,95796.0,2.12153325]
[1736331812045,0.00083332,95797.0,95796.0,2.11753325]
[1736331812420,0.00083332,95797.0,95796.0,2.12153325]
[1736331813271,0.00083332,95797.0,95796.0,1.89063325]
[1736331813485,0.00083332,95797.0,95796.0,0.36980863]
[1736331813681,0.00083332,95797.0,95796.0,0.33720916]
[1736331814308,0.00083332,95797.0,95796.0,0.17262469]
[1736331814510,0.07713332,95797.0,95796.0,0.11476763]
[1736331814729,0.07713332,95797.0,95796.0,0.11876763]
[1736331815174,0.07713332,95797.0,95796.0,0.11476763]
[1736331815478,0.07713332,95797.0,95796.0,0.11576763]
[1736331815678,0.59907332,95797.0,95796.0,0.12966583]
[1736331816778,0.59907332,95797.0,95796.0,0.12866583]
[1736331817150,0.59907332,95797.0,95796.0,0.12966583]
[1736331818175,0.59907332,95797.0,95796.0,0.12866583]
[1736331819015,0.59907332,95797.0,95796.0,0.01046787]
[1736331819331,0.0763,95796.0,95772.0,0.15]
[1736331819540,0.0763,95794.0,95777.0,0.15]
[1736331819747,0.00130493,95793.0,95778.0,0.10429976]
[1736331819964,0.52324493,95793.0,95779.0,0.15]
[1736331820172,0.52324493,95793.0,95781.0,0.15]
[1736331820324,0.52324493,95793.0,95783.0,0.15]
[1736331820538,0.52324493,95793.0,95785.0,0.15]
[1736331820741,0.52324493,95793.0,95787.0,0.15]
[1736331820923,0.52324493,95793.0,95789.0,0.15]
[1736331821121,0.52324493,95793.0,95790.0,0.10429976]
[1736331821329,0.52324493,95793.0,95790.0,0.11511466]
[1736331822027,0.52194,95793.0,95790.0,0.11511466]
[1736331822642,0.52194,95793.0,95790.0,0.11611466]
[1736331822875,0.52194,95793.0,95791.0,0.02661147]
[1736331823028,0.52194,95793.0,95792.0,0.10429976]
[1736331825634,0.52194,95793.0,95792.0,0.10529976]
[1736331826804,0.14063777,95847.0,95792.0,0.10529976]
[1736331826979,0.023,95843.0,95840.0,1.54771909]
[1736331827207,0.12729976,95841.0,95840.0,1.49441909]
[1736331827608,0.64899976,95841.0,95840.0,1.49441909]
[1736331828287,0.63024601,95841.0,95840.0,1.49441909]
[1736331828694,0.83892401,95841.0,95840.0,1.47355109]
[1736331829012,0.83892401,95841.0,95840.0,1.39007909]
[1736331829832,0.98892401,95841.0,95840.0,1.39007909]
[1736331830262,0.98892401,95841.0,95840.0,1.36921109]
[1736331830878,1.31642401,95841.0,95840.0,1.36921109]
[1736331837498,1.31642401,95841.0,95840.0,1.37460853]
[1736331844273,1.31629843,95841.0,95840.0,1.37460853]
[1736331859780,1.08092888,95841.0,95840.0,1.4877246]
[1736331860009,1.05792888,95841.0,95840.0,1.4877246]
[1736331861054,1.05792888,95841.0,95840.0,1.45740853]
[1736331861424,1.08092888,95841.0,95840.0,1.45740853]
[1736331863226,0.023,95841.0,95840.0,1.45740853]
[1736331863967,0.5447,95841.0,95840.0,1.45740853]
[1736331864729,0.753378,95841.0,95840.0,1.45740853]
[1736331864936,0.753378,95841.0,95840.0,1.56170829]
[1736331866163,0.753378,95841.0,95840.0,1.45740853]
[1736331870163,0.754378,95841.0,95840.0,1.45740853]
[1736331872812,0.02448614,95844.0,95840.0,1.45740853]
[1736331873074,0.00130438,95843.0,95840.0,1.45740853]
[1736331873438,0.52299438,95843.0,95840.0,1.45740853]
[1736331873641,0.208676,95842.0,95841.0,0.10429976]
[1736331873839,0.730366,95842.0,95841.0,0.1096961]
[1736331875221,0.753366,95842.0,95841.0,0.00539634]
[1736331899950,0.52169,95842.0,95841.0,0.12709634]
[1736331900844,0.54469,95842.0,95841.0,0.12709634]
[1736331908615,0.730342,95844.0,95843.0,0.00539414]
[1736331918956,0.52167,95844.0,95843.0,0.08859414]
[1736331919364,0.52167,95844.0,95843.0,0.13849414]
[1736331919565,0.52167,95844.0,95843.0,0.2427939]
[1736331922874,0.52167,95844.0,95843.0,0.2437939]
[1736331935514,0.54467,95844.0,95843.0,0.00539414]
[1736331935754,0.54467,95844.0,95840.0,1.36921109]
[1736331935755,0.440348,95843.0,95840.0,1.36921109]
[1736331935972,0.231678,95841.0,95840.0,1.36921109]
[1736331936253,0.753348,95841.0,95840.0,1.36921109]
[1736331939237,0.753348,95841.0,95840.0,1.47351085]
[1736331939446,0.753348,95841.0,95840.0,1.36921109]
[1736331939654,0.753348,95841.0,95840.0,1.37478525]
[1736331943910,0.730348,95841.0,95840.0,1.49968525]
[1736331944312,0.753348,95841.0,95840.0,1.49968525]
[1736331947044,0.52167,95841.0,95840.0,1.70398501]
[1736331947257,0.52167,95841.0,95840.0,1.80828477]
[1736331947875,0.52167,95841.0,95840.0,1.60398501]
[1736331949950,0.52167,95841.0,95840.0,1.80828477]
[1736331951078,0.52167,95841.0,95840.0,2.01696577]
[1736331961816,0.52167,95841.0,95840.0,2.01796577]
[1736331963056,0.52167,95841.0,95840.0,1.45158525]
[1736331963696,0.52167,95841.0,95840.0,1.45058525]
[1736331964046,0.52167,95841.0,95840.0,1.45158525]
[1736331964525,0.52167,95841.0,95840.0,1.45058525]
[1736331965666,0.52167,95841.0,95840.0,1.50028525]
[1736331965874,0.52167,95841.0,95840.0,1.60458501]
[1736331979473,0.52167,95841.0,95840.0,1.80888477]
[1736331979664,0.52167,95841.0,95840.0,2.11756577]
[1736331980068,0.52167,95841.0,95840.0,2.26756577]
[1736331982818,0.52167,95841.0,95840.0,2.26856577]
[1736331983213,0.52167,95841.0,95840.0,2.26756577]
[1736331983632,0.52167,95841.0,95840.0,2.26856577]
[1736331984210,0.52167,95841.0,95840.0,2.26756577]
[1736331987211,0.54467,95841.0,95840.0,1.37478525]
[1736331992079,0.54454443,95841.0,95840.0,1.37478525]
[1736331992304,0.54454443,95841.0,95840.0,1.36921109]
[1736331992484,0.54454443,95841.0,95840.0,1.43306619]
[1736331992818,0.54454443,95841.0,95840.0,1.43864035]
[1736331993466,0.54454443,95841.0,95840.0,1.37478525]
[1736332020052,0.54229102,95841.0,95840.0,1.37478525]
[1736332022424,0.6002199,95841.0,95840.0,1.37478525]
[1736332040969,0.70451966,95841.0,95840.0,1.37478525]
[1736332042980,0.02112321,95847.0,95840.0,1.37478525]
[1736332043174,0.1056042,95846.0,95840.0,1.37478525]
[1736332043598,0.6272942,95846.0,95840.0,1.37478525]
[1736332044761,0.208678,95841.0,95840.0,1.37478525]
[1736332044955,0.730368,95841.0,95840.0,1.37478525]
[1736332045131,0.753368,95841.0,95840.0,1.36921109]
[1736332045581,0.753368,95841.0,95840.0,1.37500665]
[1736332046982,0.755368,95841.0,95840.0,1.37500665]
[1736332050067,0.755368,95841.0,95840.0,1.37500665]
[1736332052681,0.755368,95841.0,95840.0,1.47930641]
[1736332053500,0.755368,95841.0,95840.0,1.56200641]
[1736332059795,0.755368,95841.0,95840.0,1.60950641]
[1736332060607,0.755368,95841.0,95840.0,1.50520665]
[1736332067881,0.755368,95841.0,95840.0,1.45770665]
[1736332078929,0.755368,95841.0,95840.0,1.45770665]
[1736332084782,0.52369,95841.0,95840.0,1.50540665]
[1736332085193,0.52369,95841.0,95840.0,1.50830443]
[1736332085803,0.52369,95841.0,95840.0,1.92128519]
[1736332086013,0.39559,95841.0,95840.0,2.27558495]
[1736332087606,0.39359,95841.0,95840.0,2.27558495]
[1736332087970,0.39559,95841.0,95840.0,2.27558495]
[1736332088435,0.39359,95841.0,95840.0,2.27558495]
[1736332088828,0.39359,95841.0,95840.0,2.27758495]
[1736332090574,0.39359,95841.0,95840.0,2.29006265]
[1736332094767,0.39359,95841.0,95840.0,2.28806265]
[1736332095002,0.39359,95841.0,95840.0,2.28906265]
[1736332097945,0.39359,95841.0,95840.0,2.28806265]
[1736332098231,0.39359,95841.0,95840.0,2.28906265]
[1736332100593,0.39359,95841.0,95840.0,2.28806265]
[1736332100994,0.39359,95841.0,95840.0,2.10092688]
[1736332101192,0.39359,95841.0,95840.0,2.08038165]
[1736332101421,0.39359,95841.0,95840.0,2.28806265]
[1736332101757,0.39359,95841.0,95840.0,2.28906265]
[1736332103841,0.39359,95841.0,95840.0,2.28806265]
[1736332104061,0.39359,95841.0,95840.0,2.28906265]
[1736332104815,0.39359,95841.0,95840.0,2.28806265]
[1736332105042,0.39359,95841.0,95840.0,2.28906265]
[1736332105648,0.39359,95841.0,95840.0,2.28806265]
[1736332107624,0.39359,95841.0,95840.0,2.28906265]
[1736332108003,0.39359,95841.0,95840.0,2.28806265]
[1736332108430,0.39359,95841.0,95840.0,2.28906265]
[1736332108933,0.39359,95841.0,95840.0,2.28806265]
[1736332109441,0.39359,95841.0,95840.0,2.28906265]
[1736332111092,0.39359,95841.0,95840.0,2.28806265]
[1736332111544,0.39359,95841.0,95840.0,2.28906265]
[1736332112120,0.39359,95841.0,95840.0,2.28806265]
[1736332112336,0.39359,95841.0,95840.0,2.28906265]
[1736332112870,0.39359,95841.0,95840.0,2.28806265]
[1736332113244,0.39359,95841.0,95840.0,2.28906265]
[1736332115065,0.39359,95841.0,95840.0,2.28806265]
[1736332115264,0.39359,95841.0,95840.0,2.28906265]
[1736332115892,0.39359,95841.0,95840.0,2.28806265]
[1736332116296,0.39359,95841.0,95840.0,2.28906265]
[1736332116835,0.39359,95841.0,95840.0,2.28806265]
[1736332117007,0.39359,95841.0,95840.0,2.28906265]
[1736332118202,0.39359,95841.0,95840.0,2.28632869]
[1736332118540,0.39359,95841.0,95840.0,2.28532869]
[1736332118728,0.39359,95841.0,95840.0,2.28732869]
[1736332130491,0.05152597,95841.0,95840.0,2.18302893]
[1736332132013,0.05152597,95841.0,95840.0,2.18102893]
[1736332132448,0.05152597,95841.0,95840.0,2.18302893]
[1736332132986,0.05152597,95841.0,95840.0,2.18102893]
[1736332133111,0.05152597,95841.0,95840.0,2.51382893]
[1736332137405,0.001,95842.0,95841.0,0.3769]
[1736332137669,0.001,95842.0,95841.0,0.48119976]
[1736332137837,0.001,95842.0,95841.0,0.48715804]
[1736332138052,0.001,95842.0,95841.0,0.49963574]
[1736332138678,0.001,95842.0,95841.0,0.50463574]
[1736332139085,3e-07,95856.0,95855.0,0.658648]
[1736332139290,5.116e-05,95856.0,95855.0,0.98434776]
[1736332139507,1.116e-05,95856.0,95855.0,0.99029065]
[1736332140062,5.608e-05,95867.0,95866.0,0.558624]
[1736332140288,0.52166694,95867.0,95866.0,0.79504072]
[1736332140493,0.52166694,95867.0,95866.0,0.89504072]
[1736332141123,0.52166694,95867.0,95866.0,0.90751842]
[1736332141327,0.52166694,95867.0,95866.0,0.91913066]
[1736332142301,0.52166694,95867.0,95866.0,0.92313066]
[1736332143949,0.52166694,95867.0,95866.0,0.9249099]
[1736332144561,0.26698437,95867.0,95866.0,1.9161099]
[1736332144765,8.53e-05,95881.0,95879.0,0.3316]
[1736332144905,0.52208403,95880.0,95879.0,0.48569976]
[1736332145110,0.52208403,95880.0,95879.0,0.51757453]
[1736332145319,0.50122503,95880.0,95879.0,0.72053278]
[1736332145530,0.35891483,95880.0,95879.0,0.74154936]
[1736332145738,0.31168627,95880.0,95879.0,0.83859111]
[1736332145938,0.31168627,95880.0,95879.0,0.85106881]
[1736332146740,0.31168627,95880.0,95879.0,0.85706881]
[1736332146929,0.31168627,95880.0,95879.0,0.73406881]
[1736332147215,0.31168627,95880.0,95879.0,0.63406881]
[1736332147461,0.31168627,95880.0,95879.0,0.73406881]
[1736332147855,0.31168627,95880.0,95879.0,0.83406881]
[1736332148060,0.31168627,95880.0,95879.0,0.73406881]
[1736332148505,0.31168627,95880.0,95879.0,0.74542323]
[1736332148859,0.31168627,95880.0,95879.0,0.84542323]
[1736332151252,0.24910927,95880.0,95879.0,0.86842323]
[1736332151371,0.20739127,95880.0,95879.0,0.86842323]
[1736332151776,0.18653227,95880.0,95879.0,0.86842323]
[1736332152016,0.14481527,95880.0,95879.0,1.73662323]
[1736332152220,0.0818,95929.0,95899.0,0.558552]
[1736332152396,0.0818,95929.0,95899.0,0.88535176]
[1736332152594,0.00156239,95900.0,95899.0,0.89419357]
[1736332153403,0.00156239,95900.0,95899.0,0.89619357]
[1736332153604,0.00156239,95900.0,95899.0,0.79619357]
[1736332153905,0.52294239,95900.0,95899.0,0.80867127]
[1736332154865,0.52294239,95900.0,95899.0,0.80667127]
[1736332155019,0.52294239,95900.0,95899.0,0.81167127]
[1736332155260,0.52294239,95900.0,95899.0,0.72289374]
[1736332155607,0.52294239,95900.0,95899.0,0.70039374]
[1736332155839,0.52294239,95900.0,95899.0,0.70995493]
[1736332156494,0.52294239,95900.0,95899.0,0.70495493]
[1736332156900,0.52294239,95900.0,95899.0,0.70895493]
[1736332158041,0.52294239,95900.0,95899.0,0.70495493]
[1736332158476,0.52294239,95900.0,95899.0,0.70795493]
[1736332158671,0.52294239,95900.0,95899.0,0.60795493]
[1736332159012,0.52294239,95900.0,95899.0,0.70795493]
[1736332159203,0.52294239,95900.0,95899.0,0.70495493]
[1736332159508,0.52294239,95900.0,95899.0,0.70695493]
[1736332159912,0.52294239,95900.0,95899.0,0.70495493]
[1736332160113,0.52294239,95900.0,95899.0,0.70695493]
[1736332162824,0.52294239,95900.0,95899.0,0.70495493]
[1736332163036,0.52294239,95900.0,95899.0,0.70695493]
[1736332164679,0.52294239,95900.0,95899.0,0.70495493]
[1736332165018,0.52294239,95900.0,95899.0,0.70695493]
[1736332165599,0.52294239,95900.0,95899.0,0.70495493]
[1736332165979,0.52294239,95900.0,95899.0,0.70795493]
[1736332167146,0.52294239,95900.0,95899.0,0.70515635]
[1736332169425,0.52294239,95900.0,95899.0,0.69267865]
[1736332170772,0.52294239,95900.0,95899.0,0.70507094]
[1736332173741,0.52294239,95900.0,95899.0,0.73759902]
[1736332175629,0.52294239,95900.0,95899.0,0.73459902]
[1736332175831,0.52294239,95900.0,95899.0,0.73859902]
[1736332176306,0.52294239,95900.0,95899.0,0.73459902]
[1736332177808,0.52294239,95900.0,95899.0,0.73959902]
[1736332179529,0.52294239,95900.0,95899.0,0.81849902]
[1736332179745,0.52294239,95900.0,95899.0,0.91849902]
[1736332180904,0.52294239,95900.0,95899.0,0.91349902]
[1736332181114,0.52294239,95900.0,95899.0,0.91849902]
[1736332181706,0.50208739,95900.0,95899.0,0.91849902]
[1736332181935,0.48123239,95900.0,95899.0,1.01849902]
[1736332182141,0.48123239,95900.0,95899.0,1.09109902]
[1736332182142,0.37751617,95900.0,95899.0,1.09109902]
[1736332182362,0.3562624,95900.0,95899.0,1.09109902]
[1736332182562,0.3402624,95900.0,95899.0,1.09109902]
[1736332182759,0.3194074,95900.0,95899.0,1.09109902]
[1736332183017,0.2985524,95900.0,95899.0,1.09109902]
[1736332183215,0.15488921,95900.0,95899.0,1.20109902]
[1736332183367,0.11028108,95900.0,95899.0,1.26461935]
[1736332183915,0.02686108,95900.0,95899.0,1.06309902]
[1736332184495,0.02686108,95900.0,95899.0,1.12578395]
[1736332184736,0.02686108,95900.0,95899.0,1.09209902]
[1736332184965,0.02686108,95900.0,95899.0,1.08609902]
[1736332185328,0.02686108,95900.0,95899.0,1.09309902]
[1736332186152,0.02686108,95900.0,95899.0,1.08070673]
[1736332186361,0.02686108,95900.0,95899.0,1.11439166]
[1736332187429,0.02686108,95900.0,95899.0,1.08070673]
[1736332188078,8e-08,95900.0,95899.0,1.08070673]
[1736332188282,8e-08,95900.0,95899.0,1.14422706]
[1736332188774,8e-08,95900.0,95899.0,1.13722706]
[1736332189128,8e-08,95900.0,95899.0,1.14422706]
[1736332189710,8.53e-05,95937.0,95918.0,0.635011]
[1736332189918,0.52201359,95919.0,95918.0,0.73931076]
[1736332190114,0.52201359,95919.0,95918.0,0.74538396]
[1736332191502,0.52201359,95919.0,95918.0,0.84538396]
[1736332191722,0.52201359,95919.0,95918.0,0.98434877]
[1736332191931,0.52201359,95919.0,95918.0,1.09769708]
[1736332192140,0.49663686,95919.0,95918.0,1.09769708]
[1736332192411,0.49663686,95919.0,95918.0,1.10269708]
[1736332192585,0.45644777,95919.0,95918.0,1.10269708]
[1736332192790,0.41474577,95919.0,95918.0,1.10269708]
[1736332192993,0.41474577,95919.0,95918.0,1.09769708]
[1736332193250,0.41474577,95919.0,95918.0,1.06108264]
[1736332193421,0.41474577,95919.0,95918.0,0.81015582]
[1736332193753,0.41474577,95919.0,95918.0,0.52992195]
[1736332194460,0.41474577,95919.0,95918.0,0.68592195]
[1736332194895,0.41474577,95919.0,95918.0,0.67992195]
[1736332195098,0.41474577,95919.0,95918.0,0.68292195]
[1736332195739,0.41474577,95919.0,95918.0,0.67992195]
[1736332195917,0.41474577,95919.0,95918.0,0.68392195]
[1736332197128,0.41474577,95919.0,95918.0,0.71634081]
[1736332197551,0.41474577,95919.0,95918.0,0.71234081]
[1736332197774,0.41474577,95919.0,95918.0,0.71634081]
[1736332197970,0.41474577,95919.0,95918.0,0.80692195]
[1736332198388,0.41474577,95919.0,95918.0,0.83533859]
[1736332198697,0.41574577,95919.0,95918.0,0.8403353]
[1736332199094,0.41574577,95919.0,95918.0,0.8353353]
[1736332199453,0.41574577,95919.0,95918.0,0.8413353]
[1736332200077,0.41574577,95919.0,95918.0,0.87996677]
[1736332200278,0.41574577,95919.0,95918.0,1.10606677]
[1736332200672,0.41574577,95919.0,95918.0,1.14311416]
[1736332205838,0.41574577,95919.0,95918.0,1.0674353]
[1736332206064,0.41574577,95919.0,95918.0,0.7674353]
[1736332206281,0.41574577,95919.0,95918.0,0.5683353]
[1736332206683,0.41574577,95919.0,95918.0,0.4683353]
[1736332206832,0.41574577,95919.0,95918.0,0.46834772]
[1736332207056,0.41574577,95919.0,95918.0,0.56834772]
[1736332207485,0.41574577,95919.0,95918.0,0.56234772]
[1736332207846,0.41574577,95919.0,95918.0,0.56634772]
[1736332208215,0.41574577,95919.0,95918.0,0.68392195]
[1736332208422,0.41574577,95919.0,95918.0,0.67992195]
[1736332208634,0.41574577,95919.0,95918.0,0.52288396]
[1736332208843,0.41574577,95919.0,95918.0,0.42288396]
[1736332209263,0.41574577,95919.0,95918.0,0.57288396]
[1736332209694,0.41574577,95919.0,95918.0,0.26437296]
[1736332209901,0.49584577,95919.0,95918.0,0.11437296]
[1736332210106,0.49584577,95919.0,95918.0,0.21037296]
[1736332210961,0.49584577,95919.0,95918.0,0.21437296]
[1736332211383,0.49584577,95919.0,95918.0,0.21037296]
[1736332211798,0.49584577,95919.0,95918.0,0.21137296]
[1736332211997,0.49584577,95919.0,95918.0,0.11137296]
[1736332212202,0.49584577,95919.0,95918.0,0.21137296]
[1736332213346,0.49584577,95919.0,95918.0,0.11037296]
[1736332213552,0.49584577,95919.0,95918.0,0.0060732]
[1736332213553,0.54324577,95919.0,95918.0,0.0060732]
[1736332213989,0.078,95916.0,95893.0,0.1]
[1736332214210,0.078,95916.0,95899.0,0.1]
[1736332214211,0.333922,95913.0,95899.0,0.1]
[1736332214417,0.333922,95913.0,95900.0,0.10429976]
[1736332214418,0.286526,95911.0,95900.0,0.10429976]
[1736332214616,0.07930337,95910.0,95900.0,0.10429976]
[1736332214821,0.49404914,95910.0,95900.0,0.10429976]
[1736332216124,0.291131,95909.0,95900.0,0.10429976]
[1736332216339,0.49967,95907.0,95890.0,0.00013792]
[1736332216545,0.0826,95905.0,95891.0,0.10429976]
[1736332216756,0.20984444,95904.0,95891.0,0.10429976]
[1736332216965,0.62459021,95904.0,95891.0,0.10429976]
[1736332217465,0.1322,95903.0,95890.0,0.00013792]
[1736332217690,0.208565,95894.0,95892.0,0.00820015]
[1736332217877,0.257767,95892.0,95890.0,0.00013792]
[1736332218081,0.08430369,95891.0,95890.0,0.00013792]
[1736332218284,0.49904946,95891.0,95890.0,0.00013792]
[1736332218439,0.49774577,95891.0,95890.0,0.00013792]
[1736332219277,0.49774577,95891.0,95890.0,0.10443768]
[1736332219653,0.49774577,95891.0,95890.0,0.11264223]
[1736332220271,0.49874577,95891.0,95890.0,0.11264223]
[1736332220826,0.41474577,95891.0,95890.0,0.46264223]
[1736332223032,0.41474577,95891.0,95890.0,0.36264223]
[1736332223273,0.41474577,95891.0,95890.0,0.36464223]
[1736332223793,0.41474577,95891.0,95890.0,0.36264223]
[1736332224013,0.41474577,95891.0,95890.0,0.46264223]
[1736332224662,0.41474577,95891.0,95890.0,0.46464223]
[1736332226056,0.41474577,95891.0,95890.0,0.46264223]
[1736332226233,0.41474577,95891.0,95890.0,0.46464223]
[1736332226809,0.41474577,95891.0,95890.0,0.46264223]
[1736332227212,0.41474577,95891.0,95890.0,0.46564223]
[1736332227904,0.41474577,95891.0,95890.0,0.46264223]
[1736332228608,0.41474577,95891.0,95890.0,0.54094223]
[1736332229002,0.41474577,95891.0,95890.0,0.58694223]
[1736332229205,0.41474577,95891.0,95890.0,0.58994223]
[1736332229408,0.41474577,95891.0,95890.0,0.68994223]
[1736332229787,0.41474577,95891.0,95890.0,0.69823015]
[1736332229984,0.41474577,95891.0,95890.0,0.70223015]
[1736332230183,0.41474577,95891.0,95890.0,0.60223015]
[1736332230364,0.41474577,95891.0,95890.0,0.45623015]
[1736332230567,0.41474577,95891.0,95890.0,0.36264223]
[1736332230954,0.41474577,95891.0,95890.0,0.46764223]
[1736332232580,0.41474577,95891.0,95890.0,0.46264223]
[1736332232958,0.41474577,95891.0,95890.0,0.46664223]
[1736332233375,0.41474577,95891.0,95890.0,0.46264223]
[1736332233782,0.41474577,95891.0,95890.0,0.46664223]
[1736332234168,0.41474577,95891.0,95890.0,0.46264223]
[1736332234566,0.40974577,95891.0,95890.0,0.46664223]
[1736332236008,0.40974577,95891.0,95890.0,0.46264223]
[1736332236273,0.40974577,95891.0,95890.0,0.46664223]
[1736332236474,0.40974577,95891.0,95890.0,0.54524223]
[1736332236887,0.40974577,95891.0,95890.0,0.54124223]
[1736332237240,0.40974577,95891.0,95890.0,0.54524223]
[1736332237741,0.40974577,95891.0,95890.0,0.54124223]
[1736332239231,0.40974577,95891.0,95890.0,0.46264223]
[1736332239609,0.40974577,95891.0,95890.0,0.46764223]
[1736332240215,0.40974577,95891.0,95890.0,0.46264223]
[1736332240538,0.40974577,95891.0,95890.0,0.46664223]
[1736332240944,0.40974577,95891.0,95890.0,0.49508459]
[1736332241303,0.40974577,95891.0,95890.0,0.46664223]
[1736332241490,0.40974577,95891.0,95890.0,0.49909722]
[1736332242564,0.40974577,95891.0,95890.0,0.67729722]
[1736332242983,0.40974577,95891.0,95890.0,0.68129722]
[1736332243552,0.40974577,95891.0,95890.0,0.67729722]
[1736332244035,0.40974577,95891.0,95890.0,0.68129722]
[1736332244440,0.40974577,95891.0,95890.0,0.67729722]
[1736332245855,0.40974577,95891.0,95890.0,1.09057141]
[1736332246061,0.40974577,95891.0,95890.0,1.09557141]
[1736332246354,0.40974577,95891.0,95890.0,0.68229722]
[1736332246541,0.40974577,95891.0,95890.0,0.67729722]
[1736332246742,0.40974577,95891.0,95890.0,0.47729722]
[1736332246956,0.40974577,95891.0,95890.0,0.58229722]
[1736332247170,0.40974577,95891.0,95890.0,0.40009722]
[1736332247384,0.40974577,95891.0,95890.0,0.39509722]
[1736332247676,0.40974577,95891.0,95890.0,0.49509722]
[1736332247909,0.40974577,95891.0,95890.0,0.49909722]
[1736332249090,0.40974577,95891.0,95890.0,0.49509722]
[1736332249527,0.40974577,95891.0,95890.0,0.50009722]
[1736332249728,0.40974577,95891.0,95890.0,0.60009722]
[1736332249868,0.40974577,95891.0,95890.0,0.68139722]
[1736332250591,0.40974577,95891.0,95890.0,0.67639722]
[1736332250794,0.40974577,95891.0,95890.0,0.68139722]